bitfinex/quotes_ETHUSD_20220220
["timestamp","ask_amount","ask_price","bid_price","bid_amount"]
[1645346095087,0.94937,2636.6,2635.8,0.92017128]
[1645346095288,0.09411,2636.7,2635.8,12.40017128]
[1645346095883,0.09411,2636.7,2635.8,0.92017128]
[1645346096085,0.09411,2636.7,2635.4,1.132]
[1645346096289,4.5434,2636.7,2635.4,1.132]
[1645346096492,4.9974,2636.7,2635.4,1.132]
[1645346097086,0.3,2636.6,2635.4,1.132]
[1645346097284,0.99509554,2636.4,2635.7,1.01309221]
[1645346097485,0.00244123,2636.3,2635.7,1.01309221]
[1645346098347,0.3,2636.4,2635.7,1.01309221]
[1645346098541,0.00244118,2636.3,2635.7,1.01309221]
[1645346099641,4.8,2636.6,2635.7,1.01309221]
[1645346099843,0.00244118,2636.3,2635.7,1.01309221]
[1645346100845,2.31037701,2636.6,2635.7,1.01309221]
[1645346101043,0.00254341,2636.3,2635.7,1.01309221]
[1645346101883,2.31037701,2636.6,2635.7,1.01309221]
[1645346102086,2.31037701,2636.6,2636.1,1.13462816]
[1645346102287,0.00244108,2636.3,2636.1,1.13462816]
[1645346103186,10.82,2636.9,2636.1,1.13462816]
[1645346103187,7.32,2636.9,2636.1,1.13462816]
[1645346103394,0.00244127,2636.3,2636.1,1.13462816]
[1645346103587,0.00244127,2636.3,2636.1,1.08086639]
[1645346104387,7.32,2636.9,2636.1,1.08086639]
[1645346104592,0.00244127,2636.3,2636.1,1.08086639]
[1645346105634,7.32,2636.9,2636.1,1.08086639]
[1645346105833,0.00254526,2636.3,2636.1,1.08086639]
[1645346106837,0.94407981,2636.8,2636.1,1.08086639]
[1645346107232,0.00254526,2636.3,2636.1,1.08086639]
[1645346107937,0.94916,2637.0,2636.1,1.08086639]
[1645346108138,1.09259,2637.1,2636.1,1.04720204]
[1645346108139,1.0,2637.1,2636.1,1.04720204]
[1645346108436,0.00254526,2636.3,2636.1,1.04720204]
[1645346109087,8.25357897,2636.7,2636.1,1.04720204]
[1645346109488,0.00254526,2636.3,2636.1,1.04720204]
[1645346109687,0.00254526,2636.3,2635.8,0.03079746]
[1645346110190,0.00254526,2636.3,2635.5,4.9607]
[1645346110488,1.91402878,2636.6,2635.6,1.61350159]
[1645346110691,0.00254512,2636.3,2635.8,1.01437181]
[1645346111491,2.00659878,2636.6,2635.8,1.01437181]
[1645346111692,1.91402878,2636.6,2635.8,1.01437181]
[1645346111893,0.00254512,2636.3,2635.8,1.01437181]
[1645346112738,1.91402878,2636.6,2635.8,1.01437181]
[1645346113138,0.0024415,2636.3,2635.8,1.01437181]
[1645346113941,1.0232613,2636.4,2635.5,4.9607]
[1645346114147,1.0232613,2636.4,2635.6,1.61352412]
[1645346114345,0.00254716,2636.3,2635.7,1.61352412]
[1645346114542,0.00254716,2636.3,2635.8,1.61352412]
[1645346114738,0.00254716,2636.3,2635.5,1.61352412]
[1645346114941,0.00254716,2636.3,2635.7,0.97678419]
[1645346115140,1.0232613,2636.4,2635.8,1.61352412]
[1645346115442,0.00254702,2636.3,2635.8,1.61352412]
[1645346116490,1.0,2636.6,2635.8,1.61352412]
[1645346116786,0.00254716,2636.3,2635.8,1.61352412]
[1645346116986,0.00254716,2636.3,2635.9,3.5]
[1645346117194,0.09254,2637.3,2636.0,42.61352412]
[1645346117390,1.15866839,2637.1,2636.1,1.61352412]
[1645346117788,7.32,2637.6,2636.1,1.61352412]
[1645346117988,1.2255,2637.7,2636.2,1.61352412]
[1645346118186,1.2255,2637.7,2636.3,1.61352412]
[1645346118389,1.2255,2637.7,2636.4,1.61352412]
[1645346118588,0.94898,2637.6,2636.2,5.5812]
[1645346118788,1.08173111,2637.5,2636.3,1.61308632]
[1645346118993,0.9491173,2637.4,2636.3,1.61308632]
[1645346119790,0.9491173,2637.4,2636.0,1.3827]
[1645346119791,0.94912,2637.2,2636.0,1.3827]
[1645346119992,0.3,2637.0,2636.1,1.13490546]
[1645346120436,0.30254728,2637.0,2636.1,1.13490546]
[1645346120637,1.25183008,2637.0,2636.1,1.13490546]
[1645346120837,0.89929,2636.8,2636.1,1.13490546]
[1645346121039,1.19929,2636.8,2636.1,1.13490546]
[1645346121236,2.28973419,2636.8,2636.1,1.13490546]
[1645346121436,1.98973419,2636.8,2636.1,1.13490546]
[1645346121742,0.00254729,2636.6,2635.7,5.5884]
[1645346121940,0.00254729,2636.6,2635.4,1.18036202]
[1645346122139,0.9494263,2636.5,2635.5,1.61350059]
[1645346122339,1.2494263,2636.5,2635.5,1.61350059]
[1645346122537,2.2494263,2636.5,2635.5,1.61350059]
[1645346122738,0.00254702,2636.4,2635.5,1.61350059]
[1645346123139,0.30254702,2636.4,2635.5,1.61350059]
[1645346123337,0.89888546,2636.3,2635.6,0.86246464]
[1645346123739,0.3,2636.2,2635.6,0.86246464]
[1645346124495,0.94953,2636.0,2635.4,1.18020119]
[1645346124694,0.00253492,2636.4,2635.5,1.6135846]
[1645346124892,1.0,2636.4,2635.5,1.6135846]
[1645346125092,0.00253469,2636.4,2635.6,1.6135846]
[1645346125291,0.00253469,2636.4,2635.7,1.6135846]
[1645346125491,0.00253469,2636.4,2635.8,1.6135846]
[1645346125692,0.00253469,2636.4,2635.9,1.6135846]
[1645346125892,0.00253469,2636.4,2635.3,11.48]
[1645346126096,0.9494,2636.4,2635.8,0.88570835]
[1645346126292,0.9494,2636.4,2635.9,1.61342198]
[1645346126491,0.9519351,2636.4,2635.9,1.61342198]
[1645346127492,0.95194716,2636.4,2635.9,1.61342198]
[1645346127745,0.00254716,2636.4,2635.9,1.61342198]
[1645346128438,0.94929,2636.7,2635.9,1.61342198]
[1645346128839,0.00250027,2636.4,2635.9,1.61342198]
[1645346129242,0.00250027,2636.4,2636.2,0.9609677]
[1645346129641,0.94916,2637.0,2636.2,0.9609677]
[1645346130037,0.0025004,2636.4,2636.2,0.9609677]
[1645346130940,0.94916,2637.0,2636.2,0.9609677]
[1645346131145,0.0025004,2636.4,2636.2,0.9609677]
[1645346131991,1.12905291,2636.7,2635.8,5.5831]
[1645346131992,2.07836291,2636.7,2635.8,5.5831]
[1645346132191,2.07836291,2636.7,2635.9,1.61336837]
[1645346132394,2.07836291,2636.7,2635.7,1.1606]
[1645346132589,2.07836291,2636.7,2635.8,1.61338084]
[1645346132590,0.0025473,2636.4,2635.8,1.61338084]
[1645346132791,0.0025473,2636.4,2635.4,0.19096202]
[1645346132993,1.10151475,2635.7,2635.4,0.00146202]
[1645346133395,1.70151475,2635.7,2635.4,0.00146202]
[1645346133596,0.454,2635.6,2635.4,0.00146202]
[1645346133994,1.40381,2635.6,2635.4,0.00146202]
[1645346134192,2.49663,2635.6,2635.4,0.00146202]
[1645346134595,2.40381,2635.6,2634.6,1.61394872]
[1645346134795,0.94974,2635.5,2634.6,1.61394872]
[1645346134997,0.94974,2635.5,2635.0,0.00130139]
[1645346135435,0.09293,2635.4,2635.0,0.00130139]
[1645346135638,4.44974,2635.5,2634.6,1.61394872]
[1645346135639,1.13324621,2635.2,2634.6,1.61394872]
[1645346135836,4.44986,2635.1,2634.5,1.2025]
[1645346136040,4.44986,2635.1,2634.7,0.00130151]
[1645346136437,1.6,2635.0,2634.7,0.00130151]
[1645346136839,1.6,2635.0,2633.8,11.4274]
[1645346136840,3.5,2634.9,2633.8,11.4274]
[1645346137043,1.90022,2634.7,2633.9,1.61430969]
[1645346137237,3.5,2634.6,2634.3,0.00130171]
[1645346137839,0.95013,2634.7,2634.3,0.00130171]
[1645346138039,1.3,2634.5,2634.3,0.00130171]
[1645346138337,1.3,2634.5,2633.6,0.8846055]
[1645346138338,0.97539094,2634.5,2633.9,0.00131961]
[1645346139190,1.57539094,2634.5,2633.9,0.00131961]
[1645346139390,2.57539094,2634.5,2633.7,1.5142516]
[1645346139593,3.5,2634.4,2633.7,0.00131974]
[1645346140593,0.90927105,2634.0,2633.4,1.14700757]
[1645346140795,0.90927105,2634.0,2633.5,0.00227981]
[1645346141092,0.90927105,2634.0,2633.5,0.00131981]
[1645346141695,3.5,2633.9,2633.2,0.03519868]
[1645346141894,1.00181173,2633.6,2633.2,0.00096]
[1645346142093,3.5,2634.1,2633.7,1.72216836]
[1645346142292,0.95018,2634.2,2633.7,1.72216836]
[1645346142293,1.0,2634.0,2633.7,1.72216836]
[1645346142748,3.5,2634.1,2633.7,1.72216836]
[1645346143240,1.94359125,2634.2,2633.7,1.72216836]
[1645346143638,2.94359125,2634.2,2633.7,1.72216836]
[1645346144047,1.4969067,2634.4,2633.7,1.72216836]
[1645346144048,0.09275,2634.4,2633.7,1.72216836]
[1645346144244,1.09346,2634.6,2633.7,1.72216836]
[1645346144444,1.0,2634.6,2633.7,1.72216836]
[1645346144642,1.09418,2634.9,2633.7,1.72216836]
[1645346144840,1.69418,2634.9,2633.7,1.72216836]
[1645346145042,1.1617873,2634.7,2634.1,1.17768244]
[1645346145346,1.09418,2634.9,2634.1,1.17768244]
[1645346145542,0.09418,2634.9,2634.1,1.17768244]
[1645346145942,0.09418,2634.9,2634.1,1.47768244]
[1645346146142,0.09418,2634.9,2634.2,11.48]
[1645346146385,0.09418,2634.9,2634.5,0.85726664]
[1645346147287,1.0926,2635.5,2634.5,0.85726664]
[1645346147586,1.6926,2635.5,2634.5,0.85726664]
[1645346147989,1.6,2635.5,2634.5,0.85872916]
[1645346148286,2.78789938,2635.6,2634.9,0.97130392]
[1645346148486,2.69690938,2635.6,2634.5,0.00146252]
[1645346148888,0.9497739,2635.5,2634.1,0.7897]
[1645346149289,0.9497739,2635.5,2634.5,0.00146249]
[1645346149487,2.69690938,2635.6,2634.6,0.95649073]
[1645346149688,2.16977229,2635.6,2634.6,0.95649073]
[1645346150548,2.16977229,2635.6,2634.6,0.95795319]
[1645346150743,0.9497,2635.5,2634.6,0.95795319]
[1645346151045,0.83878407,2635.2,2634.6,0.00146246]
[1645346151446,0.83878407,2635.2,2634.1,0.1897]
[1645346151645,0.83878407,2635.2,2634.5,0.00146249]
[1645346152440,0.83878407,2635.2,2634.4,0.8598242]
[1645346152645,0.94986,2635.0,2634.4,0.8598242]
[1645346153047,0.94986,2635.0,2634.3,0.0014626]
[1645346153744,0.94986,2635.0,2633.9,14.0124]
[1645346153989,0.94986,2635.0,2634.1,0.00146271]
[1645346154192,0.94986,2635.0,2634.2,1.03751683]
[1645346154392,1.04403865,2634.8,2634.2,1.03751683]
[1645346154992,1.04403865,2634.8,2634.1,0.00146271]
[1645346155194,1.04403865,2634.8,2634.0,0.00096]
[1645346155393,1.04403865,2634.8,2634.0,0.00242279]
[1645346155792,1.04403865,2634.8,2634.0,0.00146279]
[1645346155993,1.04403865,2634.8,2634.1,1.1540288]
[1645346157392,1.04403865,2634.8,2633.8,0.00096]
[1645346157648,0.95003,2634.7,2633.9,0.00130191]
[1645346157843,2.4966,2634.7,2633.9,0.00130191]
[1645346158443,2.40403,2634.7,2633.9,0.00130191]
[1645346158640,2.40403,2634.7,2633.8,0.00096]
[1645346158641,0.3,2634.6,2633.8,0.00096]
[1645346158843,1.09758389,2634.3,2633.8,0.00226198]
[1645346159251,0.95015,2634.2,2633.8,0.00226198]
[1645346159745,0.95015,2634.2,2633.8,0.00096]
[1645346159940,0.95015,2634.2,2633.7,1.72216836]
[1645346161794,0.95015,2634.2,2633.7,1.22216836]
[1645346162390,1.95015,2634.2,2633.7,1.22216836]
[1645346163400,1.08067352,2633.9,2633.7,1.22216836]
[1645346168752,0.88067352,2633.9,2633.7,1.22216836]
[1645346171197,0.9502884,2634.1,2633.7,1.22216836]
[1645346171401,2.04447,2634.5,2633.7,1.22216836]
[1645346171402,0.09415,2634.5,2633.7,1.22216836]
[1645346171593,0.09415,2634.5,2634.2,1.72217774]
[1645346173445,0.84372087,2634.3,2634.2,1.72217774]
[1645346173850,0.95008,2634.5,2634.2,1.72217774]
[1645346174050,0.9499296,2635.0,2634.2,1.72217774]
[1645346174269,2.5499296,2635.0,2634.2,1.72217774]
[1645346174449,0.9499296,2635.0,2634.2,1.72217774]
[1645346174848,1.13626323,2634.9,2634.3,0.94673039]
[1645346175250,1.13626323,2634.9,2634.2,1.72217774]
[1645346175652,2.08623323,2634.9,2634.2,1.72217774]
[1645346176696,3.08623323,2634.9,2634.2,1.72217774]
[1645346177900,0.3,2634.8,2634.2,1.72217774]
[1645346178100,2.08623323,2634.9,2634.2,1.72217774]
[1645346178399,3.08623323,2634.9,2634.2,1.72217774]
[1645346178599,0.3,2634.8,2634.2,1.72217774]
[1645346178797,3.38623323,2634.9,2634.2,1.72217774]
[1645346179002,3.08623323,2634.9,2634.2,1.72217774]
[1645346180240,0.3,2634.8,2634.2,1.72217774]
[1645346181840,3.38623323,2634.9,2634.2,1.72217774]
[1645346182242,0.3,2634.8,2634.2,1.72217774]
[1645346186795,15.5,2634.3,2634.0,0.00237137]
[1645346187004,5.0,2634.1,2634.0,7.137e-05]
[1645346187198,46.0,2634.1,2633.1,0.49860594]
[1645346187394,5.0,2633.7,2633.1,0.49860594]
[1645346187642,11.934,2633.6,2633.1,0.49860594]
[1645346187840,0.9507,2633.3,2633.1,0.49860594]
[1645346188044,1.4047,2633.3,2633.1,0.49860594]
[1645346188445,0.3,2633.2,2633.1,0.49860594]
[1645346189246,1.4047,2633.3,2633.1,0.49860594]
[1645346189444,1.7047,2633.3,2633.1,0.49860594]
[1645346189844,0.3,2633.2,2633.1,0.49860594]
[1645346191897,4.7538953,2633.0,2632.1,1.1566]
[1645346192096,0.95079,2632.9,2631.9,3.6897]
[1645346192294,1.95079,2632.9,2631.9,3.6897]
[1645346192494,1.95079,2632.9,2632.0,0.00145015]
[1645346192895,1.09378454,2632.4,2632.0,0.00145015]
[1645346193491,1.09378454,2632.4,2631.6,1.61557004]
[1645346193691,2.09378454,2632.4,2631.5,0.5]
[1645346193898,2.09378454,2632.4,2631.7,0.00145035]
[1645346194799,0.95089,2632.3,2631.5,1.13762821]
[1645346195145,0.95089,2632.3,2631.5,0.00145043]
[1645346195146,1.35285577,2632.0,2631.5,0.00145043]
[1645346195346,0.3,2631.9,2631.5,0.00145043]
[1645346195552,0.754,2631.9,2631.5,0.00145043]
[1645346195941,0.754,2631.9,2631.3,2.58455977]
[1645346196343,0.754,2631.9,2631.0,1.15993884]
[1645346196743,0.9511853,2631.6,2631.0,1.15993884]
[1645346196943,0.9512,2631.5,2631.0,1.15993884]
[1645346197144,1.2512,2631.5,2631.0,1.15993884]
[1645346197453,2.2512,2631.5,2630.6,3.5]
[1645346197644,2.2512,2631.5,2630.6,2.58455977]
[1645346198243,2.5512,2631.5,2630.7,1.1929822]
[1645346199093,0.95132,2631.3,2630.7,1.1929822]
[1645346199297,1.25132,2631.3,2630.5,0.00145098]
[1645346199596,1.4055,2631.2,2630.2,2.58455977]
[1645346199792,0.951548,2630.9,2630.2,2.58455977]
[1645346200001,0.3,2631.1,2630.5,0.00145101]
[1645346200196,0.454,2631.0,2630.5,0.00145101]
[1645346200402,0.454,2631.0,2630.0,2.58455977]
[1645346200403,23.0,2630.5,2630.0,2.58455977]
[1645346200697,18.5,2630.3,2629.4,0.00544354]
[1645346200898,0.454,2630.2,2629.0,0.5]
[1645346201103,1.7058181,2630.2,2629.1,1.61687]
[1645346201293,2.0058181,2630.2,2629.1,5.11687]
[1645346201504,1.1575,2630.7,2629.3,11.48]
[1645346201702,1.1575,2630.7,2629.4,16.59687]
[1645346201892,1.7575,2630.7,2629.5,1.61687]
[1645346202497,0.6,2630.7,2629.5,1.61687]
[1645346202743,0.3,2630.7,2629.5,1.61687]
[1645346202942,0.3,2630.7,2630.5,0.9477713]
[1645346203147,1.55143,2630.9,2629.6,1.2297]
[1645346203345,0.454,2630.6,2629.2,3.78011051]
[1645346203547,0.54663,2630.5,2629.6,0.00143699]
[1645346203744,0.454,2630.4,2629.6,0.00143699]
[1645346204346,1.40565,2630.4,2629.9,1.10019598]
[1645346204746,0.3,2630.3,2629.5,0.00143704]
[1645346204945,1.2517225,2630.3,2629.5,0.00143704]
[1645346205150,1.2517225,2630.3,2629.5,1.61834167]
[1645346205347,0.454,2630.2,2629.6,1.61690463]
[1645346205545,0.454,2630.2,2629.5,0.00143704]
[1645346205745,0.454,2630.2,2630.0,0.88900821]
[1645346206144,0.454,2630.2,2629.4,0.00682621]
[1645346206395,3.5,2630.1,2629.5,1.61693699]
[1645346206598,0.454,2630.1,2629.5,1.61693699]
[1645346206995,0.09279,2630.5,2630.1,0.908]
[1645346207300,0.454,2630.4,2630.1,0.908]
[1645346207497,0.754,2630.4,2630.1,0.908]
[1645346207701,0.754,2630.4,2630.1,0.008]
[1645346207895,0.454,2630.4,2630.1,0.008]
[1645346208898,1.13341117,2630.9,2630.3,1.13520841]
[1645346209398,1.73341117,2630.9,2630.3,1.13520841]
[1645346210255,4.93341117,2630.9,2630.3,1.13520841]
[1645346210451,5.93341117,2630.9,2630.3,1.13520841]
[1645346210650,2.73341117,2630.9,2630.3,1.13520841]
[1645346210850,1.0,2630.9,2630.3,1.13520841]
[1645346211255,0.9513166,2631.3,2630.3,1.13520841]
[1645346211464,0.09216,2631.5,2630.4,13.09633025]
[1645346211665,3.21277663,2631.9,2630.6,5.0]
[1645346211855,3.21277663,2631.9,2630.8,6.02828339]
[1645346212059,3.21277663,2631.9,2631.8,0.98813311]
[1645346212254,1.01895992,2632.6,2631.8,0.98813311]
[1645346212255,3.5,2632.5,2631.8,0.98813311]
[1645346212458,5.60996269,2632.7,2631.8,0.98813311]
[1645346212459,3.5,2632.7,2631.8,0.98813311]
[1645346212660,0.454,2633.1,2631.8,0.98813311]
[1645346212860,0.454,2633.4,2631.8,0.98813311]
[1645346213253,3.49372564,2633.3,2631.8,0.98813311]
[1645346213453,0.92899027,2633.1,2632.4,1.12086347]
[1645346213659,0.92899027,2633.1,2631.7,0.00103874]
[1645346213908,0.09439,2633.0,2631.7,0.00103874]
[1645346214107,0.454,2632.9,2631.7,0.00103874]
[1645346214507,0.454,2632.9,2631.9,0.00103868]
[1645346214711,0.99356506,2632.4,2631.9,0.00103868]
[1645346214911,1.9016827,2632.7,2631.9,0.00103868]
[1645346215109,0.6,2632.6,2631.9,0.00103868]
[1645346215308,1.6,2632.6,2631.7,1.18985268]
[1645346215708,1.6,2632.6,2631.8,0.00103872]
[1645346215908,2.54735197,2632.6,2631.8,0.00103872]
[1645346216809,2.54735197,2632.6,2631.7,1.19089144]
[1645346216810,1.6,2632.6,2631.7,1.19089144]
[1645346217410,0.3,2632.6,2631.7,1.19089144]
[1645346217651,0.3,2632.6,2631.7,1.18985268]
[1645346217851,0.95722259,2632.5,2631.7,1.18985268]
[1645346218249,2.50812259,2632.5,2631.7,1.18985268]
[1645346218750,1.0,2632.4,2631.7,1.18985268]
[1645346219557,1.0,2632.4,2631.6,0.00110326]
[1645346219755,1.454,2632.4,2631.6,0.00110326]
[1645346219953,2.4958,2632.4,2631.6,0.00110326]
[1645346220154,12.73099,2632.3,2631.6,0.00110326]
[1645346220354,1.9023,2632.1,2631.6,0.00110326]
[1645346220559,0.454,2632.0,2631.6,1.05645238]
[1645346220853,0.3,2631.9,2631.6,1.05534912]
[1645346221053,0.3,2631.9,2631.5,0.0011033]
[1645346221494,0.3,2631.9,2630.9,0.00891477]
[1645346221695,0.3,2631.9,2631.2,0.00108922]
[1645346222193,1.04077771,2631.8,2631.2,0.00108922]
[1645346222596,1.3,2631.9,2631.1,0.85079547]
[1645346222797,0.3,2631.9,2631.1,0.85079547]
[1645346222996,1.3,2631.9,2631.1,0.85079547]
[1645346223399,2.03365038,2632.0,2631.1,0.85079547]
[1645346223599,1.0,2631.9,2631.1,0.85079547]
[1645346223801,2.03365038,2632.0,2630.9,0.00891477]
[1645346223802,1.57965038,2632.0,2631.6,1.06846073]
[1645346224099,0.3,2631.9,2631.0,0.00108932]
[1645346224304,3.8,2631.9,2631.0,0.00108932]
[1645346224500,0.3,2631.9,2631.0,0.00108932]
[1645346224701,1.0,2631.8,2631.0,0.00108932]
[1645346224902,0.3,2631.9,2630.9,0.00891477]
[1645346225141,0.3,2631.9,2631.3,1.0869329]
[1645346225142,1.34586438,2631.9,2631.3,1.0869329]
[1645346225548,1.04586438,2631.9,2631.3,1.0869329]
[1645346225749,1.57965038,2632.0,2631.3,1.0869329]
[1645346226147,1.95113,2632.1,2631.3,1.0869329]
[1645346226849,1.11575663,2632.0,2631.3,1.0869329]
[1645346227051,0.3,2631.9,2631.3,1.0869329]
[1645346227646,2.11575663,2632.0,2631.3,1.0869329]
[1645346227846,1.11575663,2632.0,2631.3,1.0869329]
[1645346228050,2.41575663,2632.0,2631.3,1.0869329]
[1645346228247,0.3,2631.9,2631.3,1.0869329]
[1645346228749,1.3,2632.0,2631.3,1.0869329]
[1645346228998,1.0,2632.0,2631.3,1.0869329]
[1645346229192,1.09257,2632.5,2631.3,1.0869329]
[1645346229397,1.0,2632.5,2632.0,1.72372628]
[1645346229592,0.09075,2632.6,2632.0,1.72372628]
[1645346229893,0.09075,2632.6,2632.2,1.178032]
[1645346230091,0.09075,2632.6,2632.0,1.72372628]
[1645346230290,2.85265,2632.7,2632.0,1.72372628]
[1645346230694,0.08892,2632.8,2632.0,1.72372628]
[1645346230893,0.08709,2633.2,2632.1,1.61565135]
[1645346231095,1.9012257,2633.3,2632.1,1.61565135]
[1645346231694,1.9012257,2633.3,2632.7,1.041192]
[1645346231895,2.8518257,2633.3,2632.0,1.72372628]
[1645346232095,0.6,2633.2,2632.1,1.61560317]
[1645346232493,0.6,2633.2,2632.5,0.00109129]
[1645346233055,2.8518257,2633.3,2632.5,0.97970931]
[1645346233346,0.96214606,2633.0,2632.5,0.97861802]
[1645346233945,2.8518257,2633.3,2632.5,0.97861802]
[1645346234352,1.6,2633.2,2632.5,0.97861802]
[1645346234748,1.0,2633.2,2632.5,0.97861802]
[1645346236500,2.8518257,2633.3,2632.9,0.89205522]
[1645346236706,0.95062,2633.3,2632.3,0.00109132]
[1645346236896,1.0,2633.2,2632.2,1.61546343]
[1645346237295,0.95062,2633.3,2632.2,1.61546343]
[1645346237897,0.3,2633.2,2632.6,1.11394126]
[1645346238294,1.2505866,2633.2,2632.6,1.11394126]
[1645346238696,1.9505866,2633.2,2632.6,1.11394126]
[1645346238902,1.0,2633.2,2632.6,1.11394126]
[1645346239298,0.95062,2633.3,2632.6,1.11394126]
[1645346239698,0.3,2633.2,2632.6,1.11394126]
[1645346240343,1.25062,2633.3,2632.6,1.11394126]
[1645346240344,0.95062,2633.3,2632.6,1.11394126]
[1645346240743,4.7527136,2633.6,2632.6,1.11394126]
[1645346241548,2.8515236,2633.6,2633.1,0.99785181]
[1645346241746,1.0,2633.5,2632.3,5.4637]
[1645346242046,1.0,2633.5,2632.6,0.00135826]
[1645346242448,1.95044,2633.7,2632.6,0.00135826]
[1645346242746,0.3,2633.6,2632.6,0.00135826]
[1645346242946,0.3,2633.6,2632.9,1.11795415]
[1645346243150,2.20101,2633.6,2632.9,1.11795415]
[1645346243348,2.20101,2633.6,2632.6,0.00135823]
[1645346243349,1.04012642,2633.4,2632.6,0.00135823]
[1645346243752,1.9012,2633.2,2632.6,0.00034295]
[1645346244012,2.0,2633.0,2631.1,1.0]
[1645346244233,0.01276156,2632.7,2630.3,0.71814874]
[1645346244414,0.01276156,2632.7,2630.1,4.658]
[1645346244415,0.01277774,2632.0,2630.5,1.61607109]
[1645346244621,0.01277774,2632.0,2630.1,0.008]
[1645346244622,0.0124933,2630.7,2630.1,0.008]
[1645346245012,0.19,2630.6,2630.1,0.008]
[1645346245211,1.90365,2629.9,2628.6,0.71814874]
[1645346245411,0.644,2629.8,2628.7,1.61701889]
[1645346245608,0.644,2629.8,2627.9,0.19]
[1645346245609,5.67,2629.6,2627.9,0.71814874]
[1645346245911,5.67,2629.6,2628.0,2.51291967]
[1645346245912,0.91558183,2628.7,2628.0,2.51291967]
[1645346246109,0.3,2628.7,2628.1,1.61730623]
[1645346246308,1.4062443,2628.6,2628.1,1.61730623]
[1645346246914,0.95224,2628.5,2628.1,1.61730623]
[1645346247108,0.454,2628.4,2628.1,1.61730623]
[1645346247309,1.454,2629.0,2628.1,1.61730623]
[1645346247510,0.95185,2629.6,2628.2,5.00096]
[1645346247511,0.9517729,2629.5,2628.2,5.00096]
[1645346247758,0.454,2629.7,2628.3,1.61730623]
[1645346248052,0.454,2629.7,2628.4,5.0]
[1645346248250,0.454,2629.7,2629.4,0.92013799]
[1645346248451,5.12833934,2630.1,2629.4,0.92013799]
[1645346248655,3.22503934,2630.1,2629.4,0.92013799]
[1645346248849,1.13185934,2630.1,2629.5,0.00096]
[1645346249354,2.09305,2630.2,2629.5,0.00096]
[1645346249355,0.95148,2630.2,2629.5,0.00096]
[1645346251411,0.95162,2630.0,2629.5,0.00096]
[1645346251599,0.95162,2630.0,2629.1,0.00096]
[1645346251798,0.95164,2629.8,2629.3,0.00568455]
[1645346252303,2.8550368,2629.8,2629.3,1.02797523]
[1645346252499,2.8550368,2629.8,2629.3,0.00568455]
[1645346252702,0.95173,2629.6,2628.6,0.00096]
[1645346252900,0.22673989,2629.7,2628.6,1.61813823]
[1645346253102,2.8550368,2629.8,2628.4,1.61813823]
[1645346253303,2.8550368,2629.8,2628.4,13.09813823]
[1645346253506,0.95630502,2629.5,2628.8,0.91723105]
[1645346253706,0.9518,2629.3,2628.9,0.00096]
[1645346253906,0.9518,2629.3,2628.6,0.00096]
[1645346254108,0.4902,2629.2,2628.2,0.00096]
[1645346254304,0.4902,2629.2,2628.3,0.00096]
[1645346254511,0.9521258,2628.9,2627.8,0.00096]
[1645346254712,1.9586306,2628.9,2628.2,0.97756264]
[1645346254917,1.9586306,2628.9,2628.3,1.61843265]
[1645346255150,1.9586306,2628.9,2627.3,4.69889997]
[1645346255151,5.69633,2628.8,2627.8,0.00096]
[1645346255351,1.90507,2628.5,2627.5,0.00096]
[1645346255651,0.9525298,2628.3,2627.5,0.00096]
[1645346255951,1.58182243,2628.2,2627.5,1.04700966]
[1645346256151,0.95249,2628.0,2627.6,0.00096]
[1645346256349,0.1902,2627.9,2627.4,0.00096]
[1645346256548,0.1902,2627.9,2627.4,0.00533321]
[1645346256749,0.9525294,2627.8,2627.4,0.00533321]
[1645346256955,0.9525294,2627.8,2626.7,0.00096]
[1645346256956,0.1902,2627.7,2626.7,0.00096]
[1645346257154,0.95281,2627.4,2626.4,1.61921457]
[1645346257348,0.95281,2627.4,2626.6,0.95125369]
[1645346257349,0.95273,2627.2,2626.6,0.95125369]
[1645346257556,1.95281,2627.4,2626.6,0.95125369]
[1645346257557,1.0,2627.4,2627.2,1.63632574]
[1645346257749,1.0,2627.3,2627.2,1.63632574]
[1645346257948,2.2526665,2627.4,2627.2,1.63632574]
[1645346258348,0.95267,2627.3,2627.2,1.63632574]
[1645346258752,1.0,2627.4,2627.2,1.63632574]
[1645346259196,1.9524573,2627.7,2627.2,1.63632574]
[1645346259497,1.9049573,2627.7,2627.2,1.63632574]
[1645346259698,1.10442468,2627.4,2627.2,1.63632574]
[1645346259901,2.35706458,2627.4,2627.2,1.63632574]
[1645346260108,2.35706458,2627.4,2626.4,0.00096]
[1645346260109,11.1902,2627.3,2626.4,0.00096]
[1645346260301,11.1902,2627.3,2626.1,0.00096]
[1645346260302,11.6442,2627.3,2626.1,0.00096]
[1645346260499,0.95298,2626.9,2625.9,1.61947562]
[1645346260700,1.90594,2626.8,2625.9,1.61947562]
[1645346260902,1.90594,2626.8,2626.0,1.61851562]
[1645346260903,2.90594,2626.8,2626.0,1.61851562]
[1645346261099,3.00146306,2626.7,2626.1,1.61947562]
[1645346261298,1.9060035,2626.7,2626.1,1.61947562]
[1645346261697,1.9529735,2626.7,2626.1,1.61947562]
[1645346262099,0.95294,2626.5,2626.1,1.61947562]
[1645346262298,0.95294,2626.5,2626.1,1.61851562]
[1645346262498,2.9059435,2626.7,2626.5,1.90588]
[1645346263152,2.9059435,2626.7,2626.6,1.61844968]
[1645346263752,3.5059435,2626.7,2626.6,1.61844968]
[1645346263952,3.5059435,2626.7,2626.5,1.90588]
[1645346264158,2.9059435,2626.7,2626.6,1.61850244]
[1645346264456,2.9059435,2626.7,2626.5,1.90588]
[1645346264664,0.3,2626.6,2626.5,1.90588]
[1645346264855,0.3,2626.6,2626.1,0.00080232]
[1645346265054,0.3,2626.6,2626.1,0.00563116]
[1645346265359,0.3,2626.6,2626.2,1.61867143]
[1645346265556,0.87445087,2626.4,2626.2,1.61867143]
[1645346265755,1.25314,2626.3,2626.1,0.00483116]
[1645346265958,3.5,2626.2,2626.1,0.00381224]
[1645346266162,2.6603999,2626.3,2625.9,0.0048293]
[1645346266163,1.9063999,2626.3,2625.9,0.0048293]
[1645346266448,2.85942,2627.0,2626.0,1.61887183]
[1645346266449,2.09607,2627.0,2626.0,1.61887183]
[1645346266624,3.85893,2627.1,2626.0,1.56983183]